bitfinex/quotes_SOLUSD_20250210
["timestamp","ask_amount","ask_price","bid_price","bid_amount"]
[1739153158721,0.03,197.88,197.83,27.9829312]
[1739153158906,0.03,197.88,197.85,27.9829312]
[1739153159310,0.03,197.88,197.87,27.9829312]
[1739153159899,0.03,197.89,197.87,27.9829312]
[1739153160105,0.03,197.89,197.88,28.74061866]
[1739153160337,0.03,197.94,197.91,20.0]
[1739153160510,0.03,197.94,197.93,28.9829312]
[1739153160708,0.0001,197.94,197.93,32.0247312]
[1739153162404,0.0001,197.94,197.93,33.0247312]
[1739153162603,0.0001,197.94,197.92,27.9829312]
[1739153162807,0.0001,197.94,197.93,29.74054784]
[1739153163026,0.03,198.01,197.96,20.0]
[1739153163228,0.03,198.01,198.0,27.9829312]
[1739153163529,0.03,198.08,198.01,14.41184853]
[1739153163728,0.03,198.08,198.06,27.9829312]
[1739153163932,0.03,198.08,198.05,27.9829312]
[1739153164125,0.03,198.08,198.07,27.9829312]
[1739153164741,0.03,198.08,198.07,32.0218312]
[1739153165423,0.0001,198.09,198.08,14.41184853]
[1739153165729,0.03,198.21,198.1,13.41184853]
[1739153165912,0.03,198.21,198.08,27.9829312]
[1739153166113,0.03,198.21,198.11,27.9829312]
[1739153166317,0.03,198.21,198.14,27.9829312]
[1739153166623,0.03,198.21,198.15,4.0373]
[1739153166815,0.03,198.21,198.11,27.9829312]
[1739153167013,0.03,198.21,198.1,0.7567452]
[1739153167014,0.03,198.21,198.1,28.7396764]
[1739153167221,0.03,198.21,198.1,27.9829312]
[1739153167529,0.03,198.21,198.08,32.0215312]
[1739153167706,0.03,198.21,198.08,32.77851438]
[1739153167912,0.03,198.21,198.07,32.0217312]
[1739153168425,0.03,198.21,198.05,36.7421312]
[1739153168631,0.03,198.21,198.06,27.9829312]
[1739153168818,0.15549,198.21,198.06,27.9829312]
[1739153169132,13.41184853,198.19,198.03,4.0396]
[1739153169338,13.41184853,198.19,198.02,4.0399]
[1739153169636,6.4384,198.2,198.04,27.9829312]
[1739153170007,0.03,198.21,198.1,27.9829312]
[1739153170513,0.03,198.21,198.08,27.9829312]
[1739153170821,0.03,198.21,198.09,4.0385]
[1739153171533,0.03,198.21,198.11,27.9829312]
[1739153171723,0.03,198.21,198.16,27.9829312]
[1739153171924,0.03,198.21,198.12,21.75686984]
[1739153171925,0.03,198.21,198.14,27.9829312]
[1739153172133,0.03,198.21,198.15,0.75672323]
[1739153172320,0.03,198.21,198.13,0.75678005]
[1739153172633,0.03,198.21,198.14,27.9829312]
[1739153172813,0.03,198.21,198.16,4.0371]
[1739153173411,0.03,198.21,198.16,32.0200312]
[1739153173624,0.03,198.21,198.17,0.75666891]
[1739153173824,0.03,198.21,198.14,4.0373]
[1739153174025,0.03,198.21,198.14,32.0202312]
[1739153174232,0.03,198.21,198.16,27.9829312]
[1739153174437,0.03,198.21,198.17,0.75666217]
[1739153174743,0.03,198.21,198.17,28.73959337]
[1739153174934,0.03,198.21,198.18,32.0196312]
[1739153175441,0.03,198.21,198.16,32.0199312]
[1739153175624,0.03,198.21,198.17,0.75668008]
[1739153175825,0.03,198.21,198.17,28.73961128]
[1739153176539,0.03,198.21,198.18,27.9829312]
[1739153176839,0.03,198.27,198.23,20.0]
[1739153177014,0.03,198.27,198.24,32.77472506]
[1739153177214,0.03,198.27,198.24,46.18657359]
[1739153177857,0.0001,198.25,198.24,48.31206359]
[1739153178146,0.0001,198.25,198.24,54.91766359]
[1739153178309,0.0001,198.25,198.24,55.04315359]
[1739153178517,0.03,198.29,198.28,20.0]
[1739153178714,0.03,198.29,198.28,66.85085594]
[1739153179030,0.03,198.29,198.28,25.45607621]
[1739153179345,0.03,198.29,198.28,5.45607621]
[1739153179519,0.03,198.29,198.24,6.6056]
[1739153179520,0.03,198.29,198.25,4.79133291]
[1739153179927,0.03,198.29,198.23,4.0355]
[1739153180126,0.03,198.29,198.28,27.9829312]
[1739153180521,0.03,198.29,198.27,27.9829312]
[1739153180732,0.03,198.29,198.24,27.9829312]
[1739153180919,0.03,198.29,198.25,28.73925749]
[1739153181125,0.03,198.29,198.25,0.75632629]
[1739153181427,0.03,198.29,198.2,28.73933857]
[1739153181614,0.03,198.29,198.18,32.0194312]
[1739153181813,0.15549,198.29,198.18,4.0365]
[1739153182231,0.15549,198.29,198.18,32.0194312]
[1739153182422,0.15549,198.29,198.19,27.9829312]
[1739153182626,0.03,198.29,198.19,27.9829312]
[1739153182916,0.03,198.29,198.18,32.0194312]
[1739153183118,0.03,198.29,198.19,0.7566001]
[1739153183533,0.15549,198.29,198.16,4.0369]
[1739153184051,0.15549,198.29,198.18,27.9829312]
[1739153184052,0.03,198.29,198.18,27.9829312]
[1739153184442,0.03,198.29,198.16,32.0198312]
[1739153184766,0.03,198.29,198.16,4.0369]
[1739153184947,3.2575,198.29,198.16,4.0369]
[1739153185339,13.41184853,198.28,198.12,6.6056]
[1739153185528,13.41184853,198.28,198.11,28.73965035]
[1739153186253,13.41184853,198.28,198.13,4.0377]
[1739153186843,3.2279,198.27,198.15,27.9829312]
[1739153187029,3.2279,198.27,198.16,27.9829312]
[1739153187231,27.4373,198.27,198.14,27.9829312]
[1739153187547,11.2977,198.27,198.12,48.73960165]
[1739153187728,3.2279,198.27,198.15,27.9829312]
[1739153187916,3.2279,198.27,198.14,0.75677344]
[1739153187917,0.03,198.29,198.18,27.9829312]
[1739153188119,3.2577,198.29,198.16,28.73962213]
[1739153188537,3.2577,198.29,198.16,0.75669093]
[1739153188744,11.3266,198.29,198.12,32.77734917]
[1739153188943,0.12549,198.28,198.12,42.87214917]
[1739153189124,0.12549,198.28,198.12,14.88921797]
[1739153189330,0.12549,198.28,198.13,47.9829312]
[1739153189549,13.66282853,198.28,198.14,0.75674729]
[1739153190054,13.66282853,198.28,198.16,0.063]
[1739153190434,0.12549,198.24,198.16,0.063]
[1739153190951,13.41184853,198.26,198.16,0.063]
[1739153190952,0.12549,198.25,198.16,0.063]
[1739153191840,3.2284,198.24,198.16,0.063]
[1739153192454,13.66282853,198.23,198.16,0.063]
[1739153192656,6.4384,198.22,198.16,0.063]
[1739153192867,0.25098,198.19,198.16,0.063]
[1739153193043,0.25098,198.17,198.05,4.0391]
[1739153193658,0.25098,198.19,198.05,4.0391]
[1739153193962,3.2293,198.18,198.05,4.79629446]
[1739153194135,20.0,198.17,198.05,4.0391]
[1739153194335,0.25098,198.16,198.05,4.0391]
[1739153195433,13.66282853,198.16,198.04,54.58]
[1739153195833,13.66282853,198.16,198.04,58.6195]
[1739153196142,3.2298,198.15,198.04,58.6195]
[1739153196334,13.53733853,198.14,198.04,54.58]
[1739153197450,2.5303,198.21,198.06,27.87228538]
[1739153197451,3.229,198.2,198.06,27.87228538]
[1739153197843,4.7592,198.21,198.09,27.87228538]
[1739153198042,1.5303,198.21,198.11,27.87228538]
[1739153198363,6.4384,198.22,198.13,27.87228538]
[1739153198652,1.6087,198.27,198.14,28.62900511]
[1739153198855,4.8366,198.27,198.14,28.62900511]
[1739153199645,13.41184853,198.26,198.11,0.75670581]
[1739153199861,13.41184853,198.26,198.1,18.8342]
[1739153200158,13.41184853,198.24,198.1,8.7383]
[1739153200562,13.41184853,198.24,198.04,54.58]
[1739153200750,13.41184853,198.2,198.06,4.039]
[1739153201056,12.2988,198.25,198.07,28.62940925]
[1739153201057,3.2282,198.25,198.07,28.62940925]
[1739153201261,3.2282,198.25,198.1,27.87228538]
[1739153201765,13.41184853,198.22,198.06,32.66817086]
[1739153201951,3.2288,198.21,198.06,32.66817086]
[1739153202152,3.2288,198.21,198.06,4.79588548]
[1739153202153,13.41184853,198.2,198.06,4.79588548]
[1739153202466,20.0,198.17,198.1,0.063]
[1739153202760,6.4181,198.16,198.1,0.063]
[1739153202958,3.2287,198.23,198.1,0.063]
[1739153203354,13.53733853,198.2,198.1,0.063]
[1739153203837,0.12549,198.2,198.1,0.063]
[1739153204036,6.4181,198.24,198.11,31.91038538]
[1739153204354,0.03,198.26,198.16,27.87228538]
[1739153204544,0.03,198.26,198.17,0.75666009]
[1739153204861,0.03,198.26,198.17,28.62894547]
[1739153205066,0.03,198.26,198.19,27.87228538]
[1739153205368,0.03,198.26,198.2,0.75654713]
[1739153205547,0.03,198.26,198.21,27.87228538]
[1739153205860,0.03,198.26,198.22,28.62870686]
[1739153206374,0.03,198.26,198.24,27.87228538]
[1739153206550,0.03,198.26,198.25,0.75633885]
[1739153206870,0.03,198.26,198.25,28.62862423]
[1739153207058,0.03,198.32,198.26,13.41184853]
[1739153207246,0.03,198.32,198.28,27.87228538]
[1739153207442,0.0001,198.29,198.28,41.40962391]
[1739153207659,0.0001,198.29,198.28,70.28190929]
[1739153207967,0.0001,198.29,198.28,70.40739929]
[1739153208172,0.0001,198.29,198.28,45.31873391]
[1739153208377,0.0001,198.29,198.28,46.07483957]
[1739153209077,0.0001,198.29,198.28,46.20032957]
[1739153209252,0.03,198.36,198.33,0.12549]
[1739153209456,0.03,198.36,198.34,28.62809851]
[1739153210743,0.03,198.36,198.34,43.16543704]
[1739153210972,0.03,198.36,198.35,23.89123853]
[1739153211171,0.03,198.4,198.39,13.41184853]
[1739153211473,0.03,198.4,198.39,42.03974274]
[1739153211772,0.03,198.47,198.39,42.03974274]
[1739153211773,0.03,198.47,198.39,42.29072274]
[1739153211953,0.03,198.49,198.47,1.8432]
[1739153212154,0.03,198.49,198.48,60.53058415]
[1739153212354,0.03,198.49,198.48,46.1956373]
[1739153212956,0.03,198.58,198.52,20.0]
[1739153213171,0.03,198.58,198.55,27.87228538]
[1739153213363,0.03,198.58,198.55,28.62741204]
[1739153213557,0.03,198.58,198.53,0.75516238]
[1739153215063,0.03,198.58,198.55,27.87228538]
[1739153215373,0.03,198.58,198.55,41.28413391]
[1739153215556,0.03,198.58,198.57,1.0]
[1739153215758,0.03,198.58,198.57,44.28995955]
[1739153215968,0.03,198.58,198.57,43.28995955]
[1739153216349,0.03,198.58,198.57,47.31875955]
[1739153216753,0.03,198.58,198.57,48.31875955]
[1739153216950,0.03,198.69,198.64,20.0]
[1739153217169,0.03,198.69,198.66,27.87228538]
[1739153217373,0.03,198.69,198.67,0.75466621]
[1739153218380,0.03,198.69,198.67,4.78126621]
[1739153218554,0.03,198.69,198.63,27.87228538]
[1739153218754,0.03,198.69,198.62,0.75482621]
[1739153218961,0.03,198.69,198.58,0.75492214]
[1739153219370,0.03,198.69,198.57,55.21502157]
[1739153219682,0.03,198.69,198.57,59.24372157]
[1739153219975,0.03,198.69,198.57,55.21502157]
[1739153220381,0.03,198.69,198.57,59.24362157]
[1739153220568,0.03,198.69,198.59,27.87228538]
[1739153220763,0.03,198.69,198.6,0.75490815]
[1739153221251,0.03,198.69,198.61,27.87228538]
[1739153221450,0.03,198.69,198.62,28.62710629]
[1739153221655,0.03,198.69,198.63,27.87228538]
[1739153221858,0.03,198.69,198.66,27.87228538]
[1739153222073,0.03,198.69,198.68,27.87228538]
[1739153222467,0.03,198.69,198.68,31.89878538]
[1739153222658,0.03,198.69,198.67,20.75462276]
[1739153222853,0.03,198.69,198.64,4.0272]
[1739153223057,0.03,198.69,198.65,0.75482571]
[1739153223285,0.03,198.69,198.62,4.78243874]
[1739153223460,0.03,198.69,198.62,0.75483874]
[1739153223779,0.03,198.69,198.63,13.41184853]
[1739153224078,0.03,198.69,198.6,32.65503752]
[1739153224284,0.03,198.69,198.6,4.78275214]
[1739153224983,0.03,198.69,198.6,0.75475214]
[1739153225184,0.03,198.69,198.58,0.75497331]
[1739153225579,0.03,198.69,198.57,54.46]
[1739153225781,20.0,198.67,198.57,54.46]
[1739153226281,20.0,198.63,198.57,54.46]
[1739153226686,3.2222,198.62,198.57,54.46]
[1739153227382,23.2222,198.62,198.57,54.523]
[1739153227777,23.2222,198.62,198.57,0.063]
[1739153227778,20.0,198.61,198.57,0.063]
[1739153228690,3.2225,198.6,198.57,0.063]
[1739153228887,13.41184853,198.65,198.57,0.063]
[1739153228888,8.0535,198.67,198.57,0.063]
[1739153229185,0.12549,198.63,198.57,0.063]
[1739153229395,0.12549,198.59,198.57,0.063]
[1739153229568,0.25098,198.59,198.57,0.063]
[1739153229763,13.66282853,198.59,198.57,0.063]
[1739153229982,6.57708,198.59,198.57,0.063]
[1739153230176,6.45159,198.59,198.57,0.063]
[1739153230687,0.12549,198.59,198.57,0.063]
[1739153231159,23.4,198.61,198.57,0.063]
[1739153231359,6.3261,198.64,198.57,0.063]
[1739153231582,8.0535,198.67,198.57,0.063]
[1739153231583,0.12549,198.62,198.57,0.063]
[1739153231987,20.12549,198.62,198.57,0.063]
[1739153232559,23.2223,198.61,198.57,0.063]
[1739153232784,1.0,198.71,198.57,0.063]
[1739153232964,3.2511,198.69,198.58,28.62748247]
[1739153233167,0.03,198.69,198.58,28.62748247]
[1739153233376,0.03,198.69,198.58,0.75519709]
[1739153233664,0.15549,198.69,198.58,0.75519709]
[1739153233986,3.37669,198.69,198.58,0.75519709]
[1739153234189,3.37669,198.69,198.57,0.063]
[1739153234371,20.0,198.65,198.57,0.063]
[1739153235291,0.12549,198.62,198.57,0.063]
[1739153236292,20.12549,198.62,198.57,0.063]
[1739153236489,0.12549,198.6,198.57,0.063]
[1739153237297,3.2227,198.59,198.57,0.063]
[1739153237890,20.0,198.58,198.57,0.063]
[1739153238265,33.41184853,198.58,198.57,0.063]
[1739153239870,20.0,198.58,198.57,0.063]
[1739153240073,3.2225,198.61,198.57,0.063]
[1739153240285,4.8498,198.63,198.57,0.063]
[1739153240774,3.2214,198.67,198.57,0.063]
[1739153240990,7.9539,198.7,198.57,0.063]
[1739153241306,3.2512,198.69,198.57,0.063]
[1739153241596,0.12549,198.68,198.57,0.063]
[1739153241779,20.0,198.65,198.57,0.063]
[1739153241986,20.0,198.65,198.58,4.0286]
[1739153242496,3.34679,198.68,198.58,4.0286]
[1739153242672,23.34679,198.68,198.57,0.063]
[1739153243282,13.41184853,198.67,198.57,0.063]
[1739153243488,0.12549,198.63,198.57,0.063]
[1739153243684,20.0,198.64,198.57,0.063]
[1739153243902,3.2213,198.68,198.57,0.063]
[1739153244070,0.03,198.69,198.57,0.063]
[1739153244501,0.12549,198.67,198.57,0.063]
[1739153244701,20.0,198.68,198.57,0.063]
[1739153244887,0.03,198.69,198.58,0.75521526]
[1739153245577,0.03,198.69,198.57,0.063]
[1739153245879,0.12549,198.66,198.57,0.063]
[1739153246296,23.2217,198.65,198.57,0.063]
[1739153246690,13.53733853,198.64,198.57,0.063]
[1739153246891,0.12549,198.6,198.57,0.063]
[1739153247594,20.0,198.61,198.57,0.063]
[1739153247775,0.12549,198.6,198.57,0.063]
[1739153248179,23.4,198.64,198.57,0.063]
[1739153248390,8.0828,198.69,198.57,0.063]
[1739153248588,3.2212,198.68,198.57,0.063]
[1739153248784,3.2212,198.68,198.58,0.75504402]
[1739153248979,0.03,198.69,198.6,13.41184853]
[1739153249184,0.03,198.69,198.63,13.41184853]
[1739153249408,0.03,198.69,198.64,2.34254801]
[1739153250077,0.03,198.69,198.65,4.0271]
[1739153250414,0.03,198.69,198.68,20.0]
[1739153250587,0.03,198.69,198.68,20.75461184]
[1739153251109,0.03,198.73,198.68,0.75461184]
[1739153251401,0.03,198.73,198.66,0.75475792]
[1739153251600,0.03,198.73,198.64,2.34258017]
[1739153251895,20.12549,198.72,198.59,4.68]
[1739153252099,0.09145699,198.7,198.57,0.81810638]
[1739153252315,3.221,198.69,198.57,0.81810638]
[1739153253103,0.12549,198.68,198.57,0.063]
[1739153253286,20.12549,198.68,198.57,0.063]
[1739153253892,20.0,198.66,198.57,0.063]
[1739153254297,3.2217,198.65,198.57,0.063]
[1739153255906,3.2206,198.72,198.58,0.75520711]
[1739153256080,0.12549,198.69,198.58,0.75520711]
[1739153256278,3.2212,198.68,198.58,4.78360711]
[1739153256498,0.25098,198.67,198.57,0.063]
[1739153257209,3.2212,198.68,198.58,0.75518359]
[1739153257713,0.12549,198.67,198.58,0.75518359]
[1739153257918,0.12549,198.67,198.57,0.063]
[1739153258085,20.0,198.65,198.57,0.063]
[1739153258291,20.0,198.65,198.57,4.0917]
[1739153258603,23.2218,198.65,198.57,0.063]
[1739153259599,0.12549,198.64,198.57,0.063]
[1739153260387,0.12549,198.62,198.57,0.063]
[1739153261317,0.25098,198.62,198.57,0.063]
[1739153261619,20.12549,198.6,198.57,0.063]
[1739153261923,3.2222,198.62,198.57,0.063]
[1739153263321,0.03,198.7,198.57,0.063]
[1739153263620,3.2509,198.7,198.57,0.063]
[1739153263823,0.25098,198.69,198.57,0.063]
[1739153264140,0.12549,198.65,198.57,0.063]
[1739153264509,20.0,198.62,198.57,0.063]
[1739153264723,3.2223,198.61,198.57,0.063]
[1739153265448,0.12549,198.6,198.57,0.063]
[1739153266445,20.12549,198.58,198.57,0.063]
[1739153266622,13.53733853,198.58,198.57,0.063]
[1739153267013,16.76013853,198.58,198.57,0.063]
[1739153267361,3.34829,198.58,198.57,0.063]
[1739153267824,23.34829,198.58,198.57,0.063]
[1739153268134,23.34829,198.58,198.45,11.9303]
[1739153268135,36.76013853,198.58,198.45,11.9303]
[1739153268330,0.12549,198.53,198.45,7.8993]
[1739153268640,0.25098,198.53,198.45,7.8993]
[1739153268934,0.12549,198.51,198.4,6.3068]
[1739153269245,0.12549,198.47,198.4,6.3068]
[1739153269544,0.25098,198.47,198.4,6.3068]
[1739153271121,23.2247,198.47,198.4,6.3068]
[1739153271323,20.0,198.48,198.4,10.339]
[1739153271539,0.12549,198.47,198.4,6.3068]
[1739153272519,20.0,198.46,198.37,0.063]
[1739153272725,0.12549,198.45,198.37,0.063]
[1739153272943,20.0,198.46,198.37,4.0958]
[1739153273442,23.4,198.51,198.37,4.0958]
[1739153273621,3.2239,198.52,198.38,0.75589284]
[1739153273822,0.12549,198.51,198.38,0.75589284]
[1739153274024,20.0,198.48,198.38,0.75589284]
[1739153274327,20.0,198.48,198.37,4.85165919]
[1739153274536,20.0,198.53,198.37,42.80604457]
[1739153274736,20.0,198.53,198.4,13.41184853]
[1739153275032,3.2229,198.58,198.42,27.52324853]
[1739153275232,3.2229,198.58,198.44,6.5974]
[1739153275431,3.2229,198.58,198.45,0.75555876]
[1739153275627,20.0,198.56,198.46,1.6018]
[1739153276340,0.12549,198.57,198.46,1.6018]
[1739153276341,0.25098,198.57,198.47,4.0308]
[1739153276515,20.0,198.54,198.47,4.0308]
[1739153277738,20.12549,198.57,198.47,4.0308]
[1739153278143,20.0,198.57,198.47,14.1078]
[1739153278323,20.0,198.57,198.48,0.75553017]
[1739153279646,0.03,198.58,198.48,0.75553017]
[1739153279828,0.03,198.58,198.49,4.0304]
[1739153280028,0.03,198.58,198.49,14.1064]
[1739153280441,0.12549,198.57,198.49,4.0304]
[1739153280821,0.03,198.58,198.49,4.0304]
[1739153281025,0.03,198.58,198.5,0.75546466]
[1739153281959,0.03,198.58,198.51,14.105]
[1739153282138,0.03,198.58,198.52,0.75528654]
[1739153282845,0.03,198.58,198.53,4.0296]
[1739153283947,0.03,198.58,198.54,0.75527772]
[1739153284249,0.03,198.58,198.54,7.35267772]
[1739153285050,0.03,198.58,198.55,4.0292]
[1739153285260,23.4,198.71,198.57,1.6018]
[1739153285544,0.03,198.73,198.59,13.41184853]
[1739153285744,0.03,198.73,198.6,0.75487557]
[1739153286328,0.15549,198.73,198.6,0.75487557]
[1739153286948,0.25098,198.69,198.58,0.75491061]
[1739153287148,0.25098,198.64,198.54,11.38185609]
[1739153287340,0.25098,198.62,198.54,6.5974]
[1739153287655,23.65098,198.62,198.5,2.29435609]
[1739153287831,23.65098,198.62,198.5,9.33439354]
[1739153288142,20.0,198.59,198.52,0.063]
[1739153288337,20.0,198.58,198.52,0.063]
[1739153289053,3.223,198.57,198.52,0.063]
[1739153289354,23.223,198.57,198.52,0.063]
[1739153290549,20.12549,198.54,198.52,0.063]
[1739153291452,14.41184853,198.59,198.52,0.063]
[1739153291453,23.4,198.61,198.52,0.063]
[1739153291661,23.4,198.65,198.52,0.063]
[1739153291959,20.0,198.62,198.53,0.75524067]
[1739153292263,13.41184853,198.64,198.52,0.063]
[1739153292460,0.25098,198.58,198.52,0.063]
[1739153292866,0.12549,198.56,198.52,0.063]
[1739153294172,23.4,198.57,198.52,0.063]
[1739153294457,26.6225,198.61,198.52,0.063]
[1739153294836,23.4,198.61,198.52,0.81840552]
[1739153295035,26.6218,198.65,198.52,0.81840552]
[1739153295373,26.6215,198.67,198.52,2.35760552]
[1739153295667,0.12549,198.66,198.52,2.35760552]
[1739153295869,3.2215,198.67,198.53,19.89644853]
[1739153296167,3.2215,198.67,198.54,0.75508052]
[1739153296330,3.2215,198.67,198.55,4.0292]
[1739153296530,3.2215,198.67,198.56,0.75507875]
[1739153296730,26.6509,198.7,198.58,20.0]
[1739153296933,0.12549,198.69,198.59,0.75505571]
[1739153297753,0.12549,198.67,198.58,24.0285]
[1739153298538,0.12549,198.67,198.58,4.0285]
[1739153298861,43.52549,198.67,198.56,20.75507383]
[1739153299239,13.41184853,198.66,198.53,7.23981778]
[1739153299559,13.41184853,198.64,198.53,6.4846]
[1739153299760,3.222,198.63,198.53,6.4846]
[1739153299957,23.4,198.62,198.53,6.4846]
[1739153300946,23.4,198.62,198.58,0.063]
[1739153301361,0.12549,198.61,198.58,0.063]
[1739153302169,3.2225,198.6,198.58,0.063]
[1739153302541,23.52549,198.59,198.58,0.063]
[1739153302746,23.52549,198.59,198.52,0.063]
[1739153302944,23.4,198.58,198.52,0.063]
[1739153303245,20.0,198.57,198.52,0.063]
[1739153303461,20.0,198.53,198.52,0.063]
[1739153303672,20.0,198.53,198.41,6.4846]
[1739153303870,13.41184853,198.52,198.41,6.4846]
[1739153304080,3.224,198.51,198.41,6.4846]
[1739153304571,20.0,198.49,198.41,6.4846]
[1739153304778,23.4,198.5,198.4,0.063]
[1739153305872,20.0,198.47,198.4,0.063]
[1739153306075,3.2248,198.46,198.4,0.063]
[1739153306577,0.12549,198.45,198.4,0.063]
[1739153306745,23.52549,198.45,198.4,0.063]
[1739153307965,26.75059,198.45,198.4,0.063]
[1739153308545,3.35059,198.45,198.4,0.063]
[1739153308747,0.12549,198.42,198.4,0.063]
[1739153309279,36.93733853,198.42,198.4,0.063]
[1739153309478,36.81184853,198.41,198.4,0.063]
[1739153309656,23.4,198.41,198.38,0.063]
[1739153310263,0.12549,198.4,198.38,0.063]
[1739153312266,3.2254,198.42,198.38,0.063]
[1739153312465,20.0,198.42,198.38,0.063]
[1739153312763,0.12549,198.41,198.38,0.063]
[1739153313263,3.2243,198.49,198.38,0.063]
[1739153313455,0.12549,198.48,198.4,0.063]
[1739153313652,20.0,198.47,198.4,0.063]
[1739153313967,20.0,198.43,198.4,0.063]
[1739153314168,23.2254,198.42,198.4,0.063]
[1739153314350,20.0,198.41,198.38,0.063]
[1739153314548,23.2254,198.42,198.38,0.063]
[1739153314549,20.0,198.39,198.38,0.063]
[1739153315248,3.2248,198.46,198.38,0.063]
[1739153315474,26.6248,198.46,198.38,0.063]
[1739153315676,3.2246,198.48,198.38,0.063]
[1739153316050,20.0,198.47,198.38,0.063]
[1739153316248,3.2241,198.5,198.38,0.81893351]
[1739153316472,23.4,198.52,198.38,0.81893351]
[1739153316672,23.4,198.52,198.39,7.8833]
[1739153316977,3.2231,198.57,198.43,13.53733853]
[1739153317153,3.2231,198.57,198.44,0.7555016]
[1739153317352,20.0,198.56,198.45,20.0]
[1739153317553,0.12549,198.55,198.41,0.7555138]
[1739153317764,20.0,198.52,198.4,0.75569061]
[1739153318168,23.34959,198.51,198.39,11.9156]
[1739153318685,23.34959,198.51,198.39,7.8833]
[1739153319554,0.12549,198.49,198.39,7.8833]
[1739153319756,20.0,198.5,198.39,11.9157]
[1739153319974,20.0,198.5,198.4,0.75577364]
[1739153320182,0.12549,198.49,198.39,7.8833]
[1739153321068,36.53116595,198.49,198.39,7.8833]
[1739153321774,20.0,198.45,198.38,0.063]
[1739153322069,3.2254,198.42,198.38,0.063]
[1739153322773,43.4,198.44,198.38,0.063]
[1739153322965,46.6252,198.44,198.38,0.063]
[1739153325359,46.6552,198.44,198.38,0.063]
[1739153325578,56.93733853,198.43,198.38,0.063]
[1739153325764,56.93733853,198.43,198.32,0.063]
[1739153325964,20.0,198.39,198.32,0.063]
[1739153327580,3.2261,198.38,198.32,0.063]
[1739153327975,0.12549,198.37,198.32,0.063]
[1739153328175,36.93733853,198.37,198.32,0.063]
[1739153328778,20.12549,198.33,198.28,0.063]
[1739153329086,20.0,198.33,198.28,0.063]
[1739153329790,23.2269,198.33,198.28,0.063]
[1739153331495,23.2269,198.33,198.23,6.4044]
[1739153331496,20.0,198.29,198.23,6.4044]
[1739153331697,23.4,198.28,198.21,0.063]
[1739153331980,20.0,198.24,198.2,0.063]
[1739153332184,20.0,198.24,198.18,0.063]
[1739153332374,36.81184853,198.23,198.18,0.063]
[1739153332563,23.4,198.22,198.18,0.063]
[1739153332762,13.41184853,198.2,198.18,0.063]
[1739153333373,0.12549,198.18,198.13,6.0115]
[1739153333576,3.2295,198.17,198.13,6.0115]
[1739153333767,3.2292,198.2,198.13,6.0115]
[1739153334369,0.25098,198.19,198.13,6.0115]
[1739153334582,37.06282853,198.19,198.13,6.0115]
[1739153334898,20.0,198.14,198.1,0.063]
[1739153335083,0.25098,198.13,198.1,0.063]
[1739153335992,20.0,198.14,198.1,0.063]
[1739153336202,23.23,198.14,198.1,0.063]
[1739153336481,0.25098,198.13,198.1,0.063]
[1739153336680,13.66282853,198.13,198.1,0.063]
[1739153336893,37.06282853,198.12,198.08,0.063]